bitfinex/quotes_BTCUSD_20230115
["timestamp","ask_amount","ask_price","bid_price","bid_amount"]
[1673797085863,0.00197151,20876.0,20875.0,0.64307545]
[1673797087217,0.28697151,20878.0,20875.0,0.64307545]
[1673797087452,0.28697151,20878.0,20876.0,0.52693355]
[1673797087701,0.28697151,20878.0,20876.0,0.32463355]
[1673797088744,0.34400394,20878.0,20876.0,0.32463355]
[1673797089006,0.28697151,20878.0,20876.0,0.32463355]
[1673797089303,0.3,20879.0,20876.0,0.80365055]
[1673797089575,0.3,20879.0,20877.0,0.320863]
[1673797089820,0.3,20879.0,20876.0,0.81165055]
[1673797090081,0.3,20879.0,20877.0,0.33292808]
[1673797090604,0.3,20879.0,20877.0,0.34092808]
[1673797093498,0.3,20879.0,20877.0,0.33292808]
[1673797093917,0.3,20879.0,20877.0,0.33992808]
[1673797094948,0.3,20879.0,20878.0,0.36186746]
[1673797095753,0.37697803,20880.0,20877.0,0.007]
[1673797095975,0.06106203,20879.0,20877.0,0.007]
[1673797096225,0.06106203,20879.0,20876.0,0.36681875]
[1673797096469,1.01896203,20879.0,20878.0,0.007]
[1673797096730,1.32949003,20879.0,20875.0,0.30691234]
[1673797096977,0.3,20878.0,20875.0,0.30691234]
[1673797097252,0.010528,20877.0,20875.0,0.30691234]
[1673797097504,0.3,20878.0,20875.0,0.30691234]
[1673797097767,0.3,20878.0,20877.0,0.007]
[1673797098011,0.3,20878.0,20875.0,0.30691234]
[1673797098012,0.35133924,20878.0,20875.0,0.30691234]
[1673797098241,0.35133924,20878.0,20875.0,0.39991234]
[1673797098493,0.35133924,20878.0,20875.0,0.30691234]
[1673797098771,0.35133924,20878.0,20877.0,0.007]
[1673797099056,0.35133924,20878.0,20875.0,0.30691234]
[1673797099317,0.35133924,20878.0,20875.0,0.32791234]
[1673797100455,0.35133924,20878.0,20875.0,0.30691234]
[1673797100704,0.06314774,20877.0,20875.0,0.30691234]
[1673797101003,0.05261974,20877.0,20875.0,0.30691234]
[1673797101259,0.05261974,20877.0,20875.0,0.007]
[1673797101501,0.05261974,20877.0,20874.0,0.33718955]
[1673797101788,0.05261974,20877.0,20875.0,0.093]
[1673797102040,0.05261974,20877.0,20874.0,0.33718955]
[1673797102041,0.53161674,20877.0,20874.0,0.33718955]
[1673797102293,0.310528,20876.0,20875.0,0.002]
[1673797102552,0.3,20876.0,20874.0,0.33718955]
[1673797102828,0.3,20876.0,20874.0,0.34518955]
[1673797103316,0.34929393,20876.0,20874.0,0.34518955]
[1673797103822,0.07134939,20875.0,20872.0,0.32397585]
[1673797104060,0.53987439,20875.0,20874.0,0.008]
[1673797104320,0.53987439,20875.0,20872.0,0.32397585]
[1673797104321,0.85040239,20875.0,20872.0,0.32397585]
[1673797104565,0.83987439,20875.0,20874.0,0.007]
[1673797104813,0.3,20874.0,20873.0,0.37329012]
[1673797105811,0.3,20876.0,20873.0,0.37329012]
[1673797106060,0.35743616,20876.0,20873.0,0.37329012]
[1673797106570,0.50084732,20876.0,20873.0,0.37329012]
[1673797106815,0.49084732,20876.0,20873.0,0.37329012]
[1673797107831,0.49084732,20876.0,20873.0,0.38029012]
[1673797108582,0.70581542,20876.0,20873.0,0.38029012]
[1673797108841,0.41581542,20876.0,20874.0,0.34506521]
[1673797109094,0.05743616,20876.0,20874.0,0.34506521]
[1673797109830,0.20084732,20876.0,20873.0,0.007]
[1673797110085,0.0642953,20875.0,20872.0,0.39777826]
[1673797110345,0.0642953,20875.0,20874.0,0.007]
[1673797110590,0.3642953,20875.0,20874.0,0.007]
[1673797110869,0.88972903,20875.0,20869.0,0.49874313]
[1673797111149,0.14346964,20873.0,20870.0,0.34129245]
[1673797111393,0.35867411,20872.0,20866.0,0.16686458]
[1673797111652,0.14346964,20870.0,20867.0,0.295288]
[1673797111942,0.14346964,20870.0,20866.0,0.02437868]
[1673797111943,0.0776,20868.0,20866.0,0.02437868]
[1673797112208,0.21045,20867.0,20866.0,0.36759905]
[1673797112522,0.51045,20867.0,20866.0,0.02437868]
[1673797112713,0.51045,20867.0,20866.0,0.40345533]
[1673797112973,0.598978,20867.0,20866.0,0.40345533]
[1673797113472,0.682978,20867.0,20866.0,0.02537868]
[1673797113728,0.598978,20867.0,20866.0,0.02437868]
[1673797113987,0.682978,20867.0,20866.0,0.02537868]
[1673797114242,0.88790345,20867.0,20866.0,0.02537868]
[1673797114495,1.22365881,20867.0,20866.0,0.02537868]
[1673797115289,0.682978,20867.0,20866.0,0.02537868]
[1673797116010,0.604978,20867.0,20866.0,0.38260327]
[1673797116280,0.59445,20867.0,20866.0,0.38260327]
[1673797116523,0.51045,20867.0,20866.0,0.38160327]
[1673797116770,0.3,20867.0,20866.0,0.38160327]
[1673797117036,0.13841887,20868.0,20866.0,0.38160327]
[1673797117037,0.43841887,20868.0,20866.0,0.38160327]
[1673797117289,0.094528,20867.0,20866.0,0.38260327]
[1673797117557,0.310528,20867.0,20866.0,0.38160327]
[1673797118080,0.3,20867.0,20866.0,0.38160327]
[1673797118599,0.43841887,20868.0,20866.0,0.38160327]
[1673797118914,0.084,20867.0,20866.0,0.38260327]
[1673797119391,0.3,20867.0,20866.0,0.38160327]
[1673797120400,0.35924122,20869.0,20866.0,0.38160327]
[1673797120658,0.084,20867.0,20866.0,0.38260327]
[1673797120921,0.084,20867.0,20866.0,0.02537868]
[1673797121141,0.54071962,20867.0,20866.0,0.02537868]
[1673797121642,0.45671962,20867.0,20866.0,0.02437868]
[1673797121896,0.53171962,20867.0,20866.0,0.02537868]
[1673797122147,1.01094462,20867.0,20866.0,0.02437868]
[1673797122658,0.93594462,20867.0,20866.0,0.02437868]
[1673797123160,1.01994462,20867.0,20866.0,0.02537868]
[1673797123432,0.93594462,20867.0,20866.0,0.02437868]
[1673797123677,1.01994462,20867.0,20866.0,0.02537868]
[1673797124449,0.54071962,20867.0,20866.0,0.02537868]
[1673797124712,0.53019162,20867.0,20866.0,0.02537868]
[1673797125343,0.45219162,20867.0,20866.0,0.02537868]
[1673797125505,0.384,20867.0,20866.0,0.02537868]
[1673797125756,0.3,20867.0,20866.0,0.31139957]
[1673797126527,0.0522734,20871.0,20867.0,0.29999999]
[1673797126782,0.479126,20872.0,20868.0,0.51158895]
[1673797127030,0.54154742,20872.0,20869.0,0.19072595]
[1673797127273,0.010528,20871.0,20869.0,0.19072595]
[1673797127522,0.54154742,20872.0,20868.0,0.394545]
[1673797127845,0.010528,20871.0,20868.0,0.58527095]
[1673797128062,0.54154742,20872.0,20868.0,0.394545]
[1673797128338,0.010528,20871.0,20868.0,0.58519315]
[1673797128585,0.54154742,20872.0,20868.0,0.3944672]
[1673797128831,0.310528,20871.0,20868.0,0.58519315]
[1673797129090,0.010528,20870.0,20868.0,0.3944672]
[1673797129334,0.3,20871.0,20868.0,0.3944672]
[1673797129587,0.010528,20870.0,20868.0,0.3944672]
[1673797129847,0.3,20871.0,20868.0,0.3944672]
[1673797130098,0.376,20871.0,20868.0,0.3964672]
[1673797130364,0.010528,20870.0,20868.0,0.3964672]
[1673797130597,0.076,20871.0,20868.0,0.3964672]
[1673797132105,0.076,20871.0,20869.0,0.36996473]
[1673797132630,0.36242142,20872.0,20869.0,0.36996473]
[1673797132963,0.006,20870.0,20869.0,0.36996473]
[1673797133419,0.006,20870.0,20869.0,0.37096473]
[1673797133680,0.077,20871.0,20869.0,0.36996473]
[1673797133944,0.077,20871.0,20869.0,0.37096473]
[1673797134231,0.36242142,20872.0,20869.0,0.36996473]
[1673797134479,0.077,20870.0,20869.0,0.21165]
[1673797134747,0.52991618,20875.0,20869.0,1.169007]
[1673797135012,0.06590902,20874.0,20870.0,0.320863]
[1673797135270,0.06590902,20874.0,20869.0,0.689829]
[1673797135611,0.06590902,20874.0,20870.0,0.479156]
[1673797135864,0.06590902,20874.0,20870.0,0.66988195]
[1673797136115,0.14290902,20874.0,20870.0,0.67088195]
[1673797136586,0.44290902,20874.0,20870.0,0.480156]
[1673797137140,0.44290902,20874.0,20871.0,0.39007642]
[1673797137385,0.377,20874.0,20871.0,0.39007642]
[1673797138366,0.077,20874.0,20871.0,0.39007642]
[1673797138852,0.010528,20873.0,20871.0,0.39007642]
[1673797139124,0.077,20874.0,20871.0,0.39107642]
[1673797139613,0.010528,20873.0,20871.0,0.39107642]
[1673797139860,0.04872511,20874.0,20871.0,0.39007642]
[1673797140105,0.077,20873.0,20871.0,0.39107642]
[1673797140349,0.04872511,20874.0,20872.0,0.31695266]
[1673797140596,0.12572511,20874.0,20872.0,0.31695266]
[1673797140875,0.220978,20873.0,20872.0,0.31695266]
[1673797141372,0.520978,20873.0,20872.0,0.31695266]
[1673797141615,0.51969651,20873.0,20872.0,0.31695266]
[1673797141864,0.58745,20873.0,20872.0,0.31695266]
[1673797142107,0.3,20873.0,20872.0,0.31695266]
[1673797142352,0.3,20873.0,20872.0,0.31795266]
[1673797142607,0.077,20873.0,20872.0,0.31795266]
[1673797144230,0.077,20873.0,20872.0,0.001]
[1673797144506,0.077,20873.0,20872.0,0.21165]
[1673797144905,0.077,20873.0,20872.0,0.54635013]
[1673797145133,0.077,20873.0,20872.0,1.02546013]
[1673797146533,0.077,20873.0,20872.0,1.34614313]
[1673797146969,0.077,20873.0,20872.0,0.65638313]
[1673797147203,0.077,20873.0,20872.0,0.33570013]
[1673797147863,0.077,20873.0,20872.0,0.800793]
[1673797148084,0.077,20873.0,20872.0,1.279903]
[1673797148583,0.077,20873.0,20872.0,1.67261473]
[1673797154329,0.077,20873.0,20872.0,1.19350473]
[1673797154567,0.077,20873.0,20872.0,0.87282173]
[1673797154820,0.077,20873.0,20872.0,0.39371173]
[1673797155325,0.05610692,20875.0,20872.0,0.39271173]
[1673797155574,0.089,20873.0,20872.0,0.39271173]
[1673797172722,0.389,20873.0,20872.0,0.39271173]
[1673797173485,0.089,20873.0,20872.0,0.39271173]
[1673797174508,0.23246964,20873.0,20872.0,0.39271173]
[1673797174757,0.389,20873.0,20872.0,0.39271173]
[1673797175024,0.53246964,20873.0,20872.0,0.39262796]
[1673797175283,0.74767411,20873.0,20870.0,0.02]
[1673797175536,0.3,20872.0,20871.0,0.30411676]
[1673797177483,0.28931284,20873.0,20871.0,0.30411676]
[1673797177737,0.3,20872.0,20871.0,0.30411676]
[1673797177991,0.389,20872.0,20871.0,0.30411676]
[1673797180274,0.389,20872.0,20870.0,0.37869894]
[1673797181253,0.3,20872.0,20870.0,0.37869894]
[1673797181506,0.389,20872.0,20870.0,0.37869894]
[1673797182012,0.389,20872.0,20871.0,0.28480564]
[1673797182521,0.389,20872.0,20871.0,0.32253852]
[1673797184010,0.3,20872.0,20871.0,0.32253852]
[1673797184253,0.389,20872.0,20871.0,0.32253852]
[1673797185247,0.389,20872.0,20871.0,0.27253852]
[1673797186558,0.389,20872.0,20871.0,0.03773288]
[1673797187303,0.53246964,20872.0,20871.0,0.03773288]
[1673797190516,0.389,20872.0,20871.0,0.03773288]
[1673797191234,0.53246964,20872.0,20871.0,0.03773288]
[1673797191750,0.62937985,20872.0,20871.0,0.03773288]
[1673797191997,1.17743352,20872.0,20871.0,0.03773288]
[1673797192242,2.10218753,20872.0,20871.0,0.03773288]
[1673797192758,1.7435451,20872.0,20871.0,0.03773288]
[1673797193523,1.8615568,20872.0,20871.0,0.03773288]
[1673797193760,1.7725568,20872.0,20871.0,0.03773288]
[1673797194002,2.34175849,20872.0,20871.0,0.03773288]
[1673797194282,2.60861658,20872.0,20871.0,0.03773288]
[1673797194505,2.70061658,20872.0,20871.0,0.03773288]
[1673797195018,2.88622413,20872.0,20871.0,0.03773288]
[1673797195523,2.64214417,20872.0,20871.0,0.03773288]
[1673797195792,3.00100251,20872.0,20871.0,0.03773288]
[1673797196039,3.28797056,20872.0,20871.0,0.03773288]
[1673797196295,3.2879711,20872.0,20871.0,0.03773288]
[1673797197057,3.57493972,20872.0,20871.0,0.03773288]
[1673797197296,3.38933217,20872.0,20871.0,0.03773288]
[1673797197538,3.36966899,20872.0,20871.0,0.03773288]
[1673797198293,3.27447553,20872.0,20871.0,0.03773288]
[1673797199053,3.3655976,20872.0,20871.0,0.03773288]
[1673797199305,3.27447553,20872.0,20871.0,0.03773288]
[1673797199805,3.3845682,20872.0,20871.0,0.03773288]
[1673797200307,2.91561719,20872.0,20871.0,0.03773288]
[1673797200549,3.73021788,20872.0,20871.0,0.03773288]
[1673797200793,3.44332777,20872.0,20871.0,0.03773288]
[1673797201305,3.44332777,20872.0,20871.0,0.03724788]
[1673797201559,2.98758542,20872.0,20871.0,0.03724788]
[1673797202051,2.62872708,20872.0,20871.0,0.03724788]
[1673797202811,2.64403051,20872.0,20871.0,0.22797383]
[1673797203060,2.64403051,20872.0,20871.0,0.03724788]
[1673797203061,2.92455796,20872.0,20871.0,0.03724788]
[1673797203302,2.49431195,20872.0,20871.0,0.03724788]
[1673797203831,2.40231195,20872.0,20871.0,0.03724788]
[1673797204083,2.49431195,20872.0,20871.0,0.03724788]
[1673797204342,2.63771997,20872.0,20871.0,0.03724788]
[1673797204595,2.93771997,20872.0,20871.0,0.03724788]
[1673797206629,2.7226035,20872.0,20871.0,0.03724788]
[1673797207632,2.93771997,20872.0,20871.0,0.03724788]
[1673797208160,3.16691997,20872.0,20871.0,0.03724788]
[1673797208399,3.31034698,20872.0,20871.0,0.03724788]
[1673797208865,3.31024174,20872.0,20871.0,0.03724788]
[1673797209161,3.09512527,20872.0,20871.0,0.03724788]
[1673797209408,3.17568394,20872.0,20871.0,0.03724788]
[1673797210705,3.26238703,20872.0,20871.0,0.03724788]
[1673797212458,3.283315,20872.0,20871.0,0.03724788]
[1673797212972,2.99648703,20872.0,20871.0,0.03724788]
[1673797213247,3.28331382,20872.0,20871.0,0.03724788]
[1673797214542,2.92475172,20872.0,20871.0,0.03724788]
[1673797216313,3.28331382,20872.0,20871.0,0.03724788]
[1673797218347,3.13993175,20872.0,20871.0,0.03724788]
[1673797218609,3.28331382,20872.0,20871.0,0.03724788]
[1673797218891,2.90978394,20872.0,20871.0,0.03724788]
[1673797219925,3.00375376,20872.0,20871.0,0.03724788]
[1673797220178,2.90978394,20872.0,20871.0,0.03724788]
[1673797221225,2.55122184,20872.0,20871.0,0.03724788]
[1673797223283,3.05939276,20872.0,20871.0,0.03724788]
[1673797223539,4.00332519,20872.0,20870.0,0.02]
[1673797223799,1.41995499,20871.0,20870.0,0.02]
[1673797224069,3.12802099,20871.0,20870.0,0.02]
[1673797224389,3.65156408,20871.0,20870.0,0.02]
[1673797224625,4.18406116,20871.0,20870.0,0.02]
[1673797224876,4.18406116,20871.0,20866.0,0.00669551]
[1673797224877,4.18666116,20871.0,20866.0,0.00669551]
[1673797225148,0.83984493,20867.0,20866.0,0.00669551]
[1673797225404,2.74585022,20867.0,20866.0,0.00669551]
[1673797225676,2.79574626,20867.0,20866.0,0.00669551]
[1673797225968,2.58050529,20867.0,20866.0,0.00669551]
[1673797226222,2.90675242,20867.0,20866.0,0.00669551]
[1673797227494,3.05017543,20867.0,20866.0,0.00669551]
[1673797227745,3.14217543,20867.0,20866.0,0.00669551]
[1673797228007,2.99868731,20867.0,20866.0,0.00669551]
[1673797228518,2.71175871,20867.0,20866.0,0.00669551]
[1673797229791,2.71181871,20867.0,20866.0,0.00669551]
[1673797230056,2.85524223,20867.0,20866.0,0.00669551]
[1673797230581,3.14223543,20867.0,20866.0,0.00669551]
[1673797231543,2.77368162,20867.0,20866.0,0.00669551]
[1673797232334,3.06040426,20867.0,20866.0,0.00669551]
[1673797233105,2.85178162,20867.0,20866.0,0.00669551]
[1673797233860,2.49311669,20867.0,20866.0,0.00669551]
[1673797234136,2.86316655,20867.0,20866.0,0.00669551]
[1673797234631,3.22142983,20867.0,20866.0,0.00669551]
[1673797234877,3.12942983,20867.0,20866.0,0.00669551]
[1673797235137,3.22142983,20867.0,20866.0,0.00669551]
[1673797235918,3.12936983,20867.0,20866.0,0.00669551]
[1673797236161,3.50788566,20867.0,20866.0,0.00669551]
[1673797236422,3.22136983,20867.0,20866.0,0.00669551]
[1673797236666,3.0340796,20867.0,20866.0,0.00669551]
[1673797236937,2.84782723,20867.0,20866.0,0.19742146]
[1673797237220,1.28569506,20867.0,20866.0,0.00669551]
[1673797237976,1.14245,20867.0,20866.0,0.00669551]
[1673797238541,1.44245,20867.0,20866.0,0.00669551]
[1673797238820,1.52055,20867.0,20866.0,0.00669551]
[1673797239343,1.75130428,20867.0,20866.0,0.00669551]
[1673797243531,1.60805922,20867.0,20866.0,0.00669551]
[1673797243830,1.30805922,20867.0,20866.0,0.00669551]
[1673797245138,1.75130428,20867.0,20866.0,0.00669551]
[1673797245650,2.08176951,20867.0,20866.0,0.00669551]
[1673797245915,1.75130428,20867.0,20866.0,0.00669551]
[1673797246187,1.96618354,20867.0,20866.0,0.00669551]
[1673797247535,1.96618354,20867.0,20866.0,0.00662368]
[1673797248052,1.75130428,20867.0,20866.0,0.00662368]
[1673797248312,1.96618354,20867.0,20866.0,0.00637912]
[1673797248555,2.10945013,20867.0,20866.0,0.00637912]
[1673797249348,1.82293848,20867.0,20866.0,0.00637912]
[1673797249856,2.58665182,20867.0,20866.0,0.00637912]
[1673797252393,2.37177256,20867.0,20866.0,0.00637912]
[1673797252645,2.61616761,20867.0,20866.0,0.00637912]
[1673797253370,2.58678761,20867.0,20866.0,0.00637912]
[1673797253625,2.75941584,20867.0,20866.0,0.00637912]
[1673797256178,2.47290419,20867.0,20866.0,0.00637912]
[1673797256436,2.8669401,20867.0,20866.0,0.00637912]
[1673797256681,3.15377731,20867.0,20866.0,0.00637912]
[1673797257159,2.44352419,20867.0,20866.0,0.00637912]
[1673797257484,2.37209548,20867.0,20866.0,0.00637912]
[1673797258503,2.73035876,20867.0,20866.0,0.00637912]
[1673797258752,2.44352419,20867.0,20866.0,0.00637912]
[1673797259011,2.73052563,20867.0,20866.0,0.00637912]
[1673797259256,2.44352419,20867.0,20866.0,0.00637912]
[1673797259767,2.67773207,20867.0,20866.0,0.00637912]
[1673797260274,2.14352419,20867.0,20866.0,0.00637912]
[1673797260557,2.3524251,20867.0,20866.0,0.00637912]
[1673797260794,2.06542419,20867.0,20866.0,0.00637912]
[1673797261551,1.70716091,20867.0,20866.0,0.00637912]
[1673797261814,2.00716091,20867.0,20866.0,0.00637912]
[1673797262075,2.35756049,20867.0,20866.0,0.00637912]
[1673797262334,2.85664919,20867.0,20866.0,0.00637912]
[1673797262595,2.96951368,20867.0,20866.0,0.00637912]
[1673797263385,3.45368097,20867.0,20866.0,0.00637912]
[1673797263639,3.45318097,20867.0,20866.0,0.00637912]
[1673797263891,3.74689065,20867.0,20866.0,0.00637912]
[1673797264364,2.18506137,20867.0,20866.0,0.00637912]
[1673797264581,2.27706137,20867.0,20866.0,0.00637912]
[1673797264878,1.89135169,20867.0,20866.0,0.00637912]
[1673797265148,1.59774169,20867.0,20866.0,0.00637912]
[1673797265403,1.61214169,20867.0,20866.0,0.00637912]
[1673797266703,1.91214169,20867.0,20866.0,0.00637912]
[1673797268479,2.34302446,20867.0,20866.0,0.00637912]
[1673797269776,1.91214169,20867.0,20866.0,0.00637912]
[1673797270785,1.91214169,20867.0,20866.0,0.00630321]
[1673797271541,2.34302446,20867.0,20866.0,0.00630321]
[1673797272612,1.91214169,20867.0,20866.0,0.00630321]
[1673797273153,2.42112446,20867.0,20866.0,0.00630321]
[1673797273647,1.99024169,20867.0,20866.0,0.00630321]
[1673797274420,1.99024169,20867.0,20866.0,0.37084916]
[1673797274421,0.4510381,20867.0,20866.0,0.37084916]
[1673797274691,0.64630057,20869.0,20866.0,1.25738016]
[1673797274933,0.43088277,20871.0,20867.0,0.40326695]
[1673797274934,0.35901971,20871.0,20867.0,0.40326695]
[1673797275209,5.32044777,20873.0,20868.0,0.51137495]
[1673797275210,0.64614367,20873.0,20868.0,0.51137495]
[1673797275470,0.43088277,20875.0,20868.0,0.51137495]
[1673797275471,0.28715217,20874.0,20872.0,0.1555]
[1673797275727,0.09312957,20875.0,20873.0,0.320566]
[1673797275999,0.09312957,20875.0,20874.0,0.203963]
[1673797277268,0.09312957,20875.0,20874.0,0.211963]
[1673797277525,0.09312957,20875.0,20874.0,0.008]
[1673797277776,0.01230788,20876.0,20874.0,0.328683]
[1673797278032,0.01230788,20876.0,20874.0,0.38006545]
[1673797278299,0.09481493,20875.0,20874.0,0.008]
[1673797279071,0.39481493,20875.0,20874.0,0.008]
[1673797279582,0.39481493,20875.0,20872.0,0.30832367]
[1673797279583,0.87385593,20875.0,20872.0,0.30832367]
[1673797279843,0.87385593,20875.0,20874.0,0.008]
[1673797280103,0.87385593,20875.0,20870.0,0.32386871]
[1673797280367,0.779041,20875.0,20874.0,0.008]
[1673797280624,0.779041,20875.0,20874.0,0.00689046]
[1673797280837,0.09546093,20874.0,20870.0,0.32386871]
[1673797281137,0.479088,20873.0,20872.0,0.008]
[1673797281396,0.779088,20873.0,20870.0,0.32386871]
[1673797281677,0.3,20872.0,20870.0,0.32386871]
[1673797282460,0.3,20872.0,20868.0,0.36236603]
[1673797282461,1.258234,20872.0,20868.0,0.36236603]
[1673797282695,1.258234,20872.0,20870.0,0.001]
[1673797283171,0.08709071,20871.0,20868.0,0.3074338]
[1673797283437,0.08709071,20871.0,20870.0,0.001]
[1673797283682,0.56622571,20871.0,20870.0,0.001]
[1673797283931,0.86622571,20871.0,20870.0,0.001]
[1673797284181,0.86622571,20871.0,20868.0,0.3074338]
[1673797284463,0.86622571,20871.0,20870.0,0.001]
[1673797284716,0.86622571,20871.0,20868.0,0.3074338]
[1673797284967,0.3,20870.0,20866.0,0.54869769]
[1673797285222,0.779167,20870.0,20866.0,0.3734571]
[1673797285443,0.10434917,20869.0,20866.0,0.3734571]
[1673797285996,0.58352817,20869.0,20866.0,0.3734571]
[1673797286314,0.3,20868.0,20866.0,0.3744571]
[1673797286518,0.3,20868.0,20866.0,0.3734571]
[1673797286775,0.3,20868.0,20866.0,0.3744571]
[1673797287569,0.3,20868.0,20866.0,0.3734571]
[1673797287813,0.384,20868.0,20867.0,0.33893362]
[1673797289076,0.3,20868.0,20867.0,0.33893362]
[1673797289322,0.384,20868.0,20867.0,0.33993362]
[1673797290351,0.384,20868.0,20867.0,0.001]
[1673797295402,0.084,20868.0,20867.0,0.32351302]
[1673797295649,0.10431511,20871.0,20868.0,0.34249286]
[1673797295905,0.10431511,20871.0,20868.0,0.53321881]
[1673797296651,0.10431511,20871.0,20868.0,0.34249286]
[1673797296905,0.11231511,20871.0,20868.0,0.34949286]
[1673797297393,0.41231511,20871.0,20868.0,0.34949286]
[1673797298389,0.41231511,20871.0,20869.0,0.3879502]
[1673797299162,0.40431511,20871.0,20869.0,0.3879502]
[1673797299412,0.41231511,20871.0,20869.0,0.3949502]
[1673797300671,0.308,20871.0,20869.0,0.3949502]
[1673797300919,0.008,20871.0,20870.0,0.30478338]
[1673797302153,0.401557,20873.0,20870.0,0.31178338]
[1673797302399,0.008,20871.0,20870.0,0.31178338]
[1673797302898,0.401557,20873.0,20870.0,0.30478338]
[1673797303401,0.409557,20873.0,20870.0,0.30478338]
[1673797303660,0.401557,20873.0,20870.0,0.30478338]
[1673797303913,0.008,20871.0,20870.0,0.30478338]
[1673797305170,0.008,20871.0,20870.0,0.007]
[1673797305171,0.18163,20871.0,20870.0,0.007]
[1673797305433,1.94647769,20871.0,20870.0,0.007]
[1673797305951,1.90909769,20871.0,20866.0,0.35377153]
[1673797306203,1.91709769,20871.0,20870.0,0.007]
[1673797306475,0.08314173,20870.0,20866.0,0.36808679]
[1673797306723,1.34147773,20870.0,20866.0,0.36808679]
[1673797308014,0.008,20871.0,20870.0,0.007]
[1673797308267,1.74651074,20872.0,20870.0,0.19072595]
[1673797308538,0.57371074,20872.0,20870.0,0.19072595]
[1673797308820,0.09458374,20872.0,20869.0,0.0781]
[1673797309301,0.09458374,20872.0,20870.0,0.35708286]
[1673797309550,0.10258374,20872.0,20870.0,0.36408286]
[1673797309805,0.09458374,20872.0,20870.0,0.35708286]
[1673797310334,0.10258374,20872.0,20870.0,0.35708286]
[1673797310828,0.08758374,20872.0,20870.0,0.35708286]
[1673797311072,0.07958374,20872.0,20870.0,0.35708286]
[1673797311315,0.08758374,20872.0,20870.0,0.36408286]
[1673797312601,0.008,20872.0,20870.0,0.36408286]
[1673797314097,0.008,20872.0,20871.0,0.34863648]
[1673797315585,0.37223217,20873.0,20871.0,0.34863648]
[1673797315831,0.008,20872.0,20871.0,0.35563648]
[1673797317096,0.37223217,20873.0,20871.0,0.34863648]
[1673797317348,0.52324743,20873.0,20871.0,0.35563648]
[1673797317595,0.37223217,20873.0,20871.0,0.34863648]
[1673797318339,0.008,20872.0,20871.0,0.35563648]
[1673797318610,0.44301526,20874.0,20871.0,0.34863648]
[1673797318850,0.008,20873.0,20871.0,0.35563648]
[1673797319100,0.008,20873.0,20872.0,0.34107096]
[1673797319839,0.44301526,20874.0,20872.0,0.34107096]
[1673797320094,0.308,20874.0,20872.0,0.34107096]
[1673797320347,0.3,20874.0,20872.0,0.34107096]
[1673797320590,0.008,20873.0,20872.0,0.34807096]
[1673797320837,0.008,20873.0,20872.0,0.34107096]
[1673797321086,0.008,20873.0,20872.0,0.34807096]
[1673797321340,0.36991198,20874.0,20872.0,0.34107096]
[1673797321589,0.008,20873.0,20872.0,0.34807096]
[1673797321846,0.008,20873.0,20872.0,0.34788796]
[1673797323134,0.008,20873.0,20872.0,1.58512895]
[1673797323399,0.008,20873.0,20872.0,2.08886382]
[1673797323676,0.008,20873.0,20872.0,2.96919878]
[1673797323963,0.01230788,20876.0,20872.0,3.17592315]
[1673797324390,0.01230788,20876.0,20873.0,0.312373]
[1673797324394,0.01230788,20876.0,20873.0,0.290073]
[1673797324658,0.01230788,20876.0,20874.0,0.320648]
[1673797324945,0.01230788,20876.0,20873.0,0.487574]
[1673797324946,0.31230788,20876.0,20873.0,0.487574]
[1673797325203,0.31930788,20876.0,20874.0,0.38886539]
[1673797326235,0.3,20875.0,20874.0,0.38886539]
[1673797326513,0.5754975,20876.0,20874.0,0.007]
[1673797326725,0.3,20875.0,20874.0,0.007]
[1673797326976,0.3,20875.0,20874.0,0.3908841]
[1673797327220,0.3,20875.0,20874.0,0.3838841]
[1673797327466,0.307,20875.0,20874.0,0.007]
[1673797330250,0.38459994,20875.0,20874.0,0.007]
[1673797333473,0.08459994,20875.0,20874.0,0.007]
[1673797337980,0.07959994,20875.0,20874.0,0.007]
[1673797344532,0.002,20875.0,20874.0,0.007]
[1673797347542,0.002,20875.0,20874.0,0.53288423]
[1673797349043,0.002,20875.0,20874.0,0.85356723]
[1673797350332,0.002,20875.0,20874.0,0.53288423]
[1673797350605,0.478925,20881.0,20874.0,1.15346064]
[1673797350894,0.43017505,20888.0,20887.0,0.478759]
[1673797351139,0.37151004,20898.0,20887.0,0.62047]
[1673797351140,0.4300445,20894.0,20887.0,0.62047]
[1673797351398,1.13573318,20895.0,20888.0,0.503666]
[1673797351671,0.44781705,20899.0,20894.0,0.73727559]
[1673797351932,0.44781705,20899.0,20898.0,0.43954096]
[1673797352180,0.44781705,20899.0,20898.0,1.02993572]
[1673797352434,0.44781705,20899.0,20898.0,1.86099154]
[1673797352734,0.02379,20909.0,20903.0,0.55205799]
[1673797352987,0.02379,20909.0,20904.0,0.39422395]
[1673797352988,0.47720169,20908.0,20904.0,0.39422395]
[1673797353241,0.02379,20909.0,20905.0,0.19072595]
[1673797353242,0.47720169,20907.0,20905.0,0.19072595]
[1673797353501,0.47720169,20907.0,20906.0,0.320683]
[1673797353763,0.64901532,20907.0,20903.0,0.56005799]
[1673797354022,0.10189,20905.0,20903.0,0.56005799]
[1673797354291,0.47720169,20904.0,20903.0,0.56005799]
[1673797354817,0.47720169,20904.0,20903.0,0.55205799]
[1673797355603,0.47720169,20904.0,20903.0,0.56005799]
[1673797355882,0.77720169,20904.0,20903.0,0.56005799]
[1673797356958,1.09770269,20904.0,20903.0,0.56005799]
[1673797357215,0.77720169,20904.0,20903.0,0.56005799]
[1673797357479,1.09770269,20904.0,20903.0,0.56005799]
[1673797357738,0.77720169,20904.0,20903.0,0.56005799]
[1673797358012,0.53581396,20904.0,20903.0,0.56005799]
[1673797358266,0.23581396,20904.0,20903.0,0.63785799]
[1673797358544,0.26819718,20905.0,20903.0,0.84085699]
[1673797358829,0.47720169,20907.0,20905.0,0.43924469]
[1673797359103,0.52855096,20907.0,20905.0,0.43924469]
[1673797359366,0.05134927,20907.0,20905.0,0.62997064]
[1673797359635,0.05134927,20907.0,20906.0,0.302967]
[1673797359926,0.01295155,20908.0,20906.0,0.381067]
[1673797360189,0.01295155,20908.0,20907.0,0.1]
[1673797360440,0.01295155,20908.0,20907.0,0.38065]
[1673797360706,0.01719577,20913.0,20911.0,0.12344097]
[1673797360995,0.86401437,20914.0,20913.0,0.219553]
[1673797361604,0.86401437,20914.0,20913.0,0.16809526]
[1673797361606,0.78591437,20914.0,20913.0,0.16809526]
[1673797361878,1.20830537,20914.0,20911.0,0.008]
[1673797362129,1.20786237,20914.0,20908.0,0.19622]